Cogmind - Beta 13 @@@ ROGUE MODE // 2024.05.21 @ 15:49:18 Player: morimori Result: Destroyed by P-70 Sage with Tesla Rifle Performance ------------- Evolutions (6) 3000 Regions Visited (19) 3800 Robots Destroyed (244) 1220 Value Destroyed (8739) 8739 Prototype IDs (49) 980 Alien Tech Used (0) 0 Bonus (2210) 2210 TOTAL SCORE: 19949 Bonus ------- High Alert Combat Kills 512 Follower Combat Kills 1583 Network Hubs Disabled 400 Aligned with FarCom 300 Friendly Fire -585 Cogmind --------- Core Integrity 0/1150 Matter 280/300 Energy 440/440 System Corruption 29% Temperature Hot (284) Movement Treading (150) Location -4/Armory Parts ------- > --- POWER (2) -------- Quantum Reactor Light Quantum Reactor > --- PROPULSION (6) --- Biometal Heavy Treads Biometal Heavy Treads Advanced Heavy Siege Treads > --- UTILITY (7) ------ Large Storage Unit Advanced Terrain Scan Processor Improved Core Shielding Layered Heavy Armor Plating > --- WEAPON (4) ------- Enhanced Quantum Rifle Enhanced Nova Cannon > --- INVENTORY (15) --- Light Antimatter Reactor Biometal Heavy Treads Biometal Heavy Treads Centrium Leg Energy Well (350) Enhanced Quantum Rifle Enhanced Quantum Rifle Enhanced Quantum Rifle Hardcell Cannon Improved Proton Missile Launcher Power Sword Peak State ------------ > --- POWER ------------ Light Quantum Reactor Light Quantum Reactor > --- PROPULSION ------- Biometal Heavy Treads Advanced Heavy Siege Treads Advanced Heavy Siege Treads > --- UTILITY ---------- Advanced Heat Sink Large Storage Unit Advanced Signal Interpreter Advanced Terrain Scan Processor Hacking Suite Advanced Hacking Suite > --- WEAPON ----------- Enhanced Quantum Rifle Enhanced Quantum Rifle Enhanced Nova Cannon Enhanced Nova Cannon > --- INVENTORY -------- Quantum Reactor Light Quantum Reactor Biometal Heavy Treads Advanced Heavy Siege Treads Centrium Leg Energy Well Enhanced Quantum Rifle Enhanced Quantum Rifle Enhanced Quantum Rifle Enhanced Quantum Rifle Hardcell Cannon Improved Proton Missile Launcher [Rating: 143] Favorites ----------- Power Improved Deuterium Engine Engine Improved Deuterium Engine Power Core Micro Fission Core Reactor Compact Particle Reactor Propulsion Gyrokinetic Inverter Treads Advanced Heavy Siege Treads Leg Aluminum Leg Wheel Armored Wheel Hover Unit Gyrokinetic Inverter Utility Hacking Suite Device Advanced Heat Sink Storage Lightpack 2.0 Processor Improved Signal Interpreter Hackware Hacking Suite Protection Hardened Light Armor Plating Weapon XL Autogun Subcomponent Energy Gun Improved Lightning Gun Energy Cannon Enhanced Nova Cannon Ballistic Gun XL Autogun Subcomponent Ballistic Cannon Mass Driver Launcher Mini Smartbomb Launcher Impact Weapon Heavy Mace Build | -11 -10 -10 -9 -9 -9 -8 -8 -7 -7 -6 -6 -6 -6 -6 -5 -5 -5 -4 -4 ------- Run | Yrd Mat Min Mat Min Exi Min Mat Fac Sto Fac Ext Cet Arc Hub Fac Upp Upp Fac Arm Slots Evolved 12 | . . . 2 . . . 2 2 . 2 . . . . 2 . . 2 . Power 1 | . . . . . . . . . . . . . . . 1 . . . . Propulsion 4 | . . . . . . . . . . 2 . . . . . . . 2 . Utility 5 | . . . 2 . . . 2 . . . . . . . 1 . . . . Weapon 2 | . . . . . . . . 2 . . . . . . . . . . . Parts Attached 280 | 8 6 2 40 7 2 . 7 14 6 18 10 7 6 23 23 4 . 76 21 Power 29 | 1 1 . 2 . . . 2 2 . . 1 1 . 2 3 . . 10 4 Engine 20 | 1 1 . 2 . . . 2 2 . . 1 1 . 2 3 . . 5 . Core 2 | . . . . . . . . . . . . . . . . . . 2 . Reactor 7 | . . . . . . . . . . . . . . . . . . 3 4 Propulsion 53 | 2 1 . 3 2 . . . 3 . 8 . . . . 2 2 . 24 6 Treads 5 | . . . . . . . . . . . . . . . . . . . 5 Leg 10 | . . . . 1 . . . . . 4 . . . . . . . 4 1 Wheel 11 | 2 1 . 3 1 . . . 3 . . . . . . . . . 1 . Hover 27 | . . . . . . . . . . 4 . . . . 2 2 . 19 . Flight . | . . . . . . . . . . . . . . . . . . . . Utility 110 | 2 2 . 11 1 2 . 3 8 2 10 4 3 5 14 12 . . 26 5 Device 54 | 1 . . 4 1 . . . . . 5 4 1 4 12 9 . . 12 1 Storage 9 | 1 2 . 2 . 1 . . . . . . . . . . . . 2 1 Processor 3 | . . . . . . . . . . 1 . . . . . . . 2 . Hackware 9 | . . . . . . . 1 1 . 1 . . 1 . . . . 4 1 Protection 35 | . . . 5 . 1 . 2 7 2 3 . 2 . 2 3 . . 6 2 Artifact . | . . . . . . . . . . . . . . . . . . . . Weapon 88 | 3 2 2 24 4 . . 2 1 4 . 5 3 1 7 6 2 . 16 6 Energy Gun 19 | 1 . . 1 . . . . . . . . 2 1 1 . 2 . 8 3 Energy Cannon 4 | . . . . . . . . . . . . . . . . . . 2 2 Ballistic Gun 38 | 2 1 1 15 2 . . . 1 2 . 5 . . 5 2 . . 2 . Ballistic Cannon 3 | . . . . . . . . . . . . . . . 1 . . 1 1 Launcher 17 | . 1 1 4 2 . . 1 . 2 . . 1 . . 2 . . 3 . Special Weapon . | . . . . . . . . . . . . . . . . . . . . Impact Weapon 7 | . . . 4 . . . 1 . . . . . . 1 1 . . . . Slashing Weapon . | . . . . . . . . . . . . . . . . . . . . Piercing Weapon . | . . . . . . . . . . . . . . . . . . . . Special Melee Weapon . | . . . . . . . . . . . . . . . . . . . . Unidentified Prototypes 12 | . . . 2 . . . . 1 1 . 1 2 . 3 . . . 2 . Corrupted Parts 4 | . . . . . . . . . . . . . . . . . . 4 . System Corruption 17 | . . . . . . . . . . . . . . . . . . 17 . Parts Lost 85 | . . . 2 1 . . . . 1 1 2 3 . 7 8 4 . 45 11 Power 16 | . . . . . . . . . . . 1 . . 2 2 . . 9 2 Propulsion 23 | . . . 2 1 . . . . . . . . . . 1 1 . 16 2 Utility 19 | . . . . . . . . . 1 1 . 1 . 1 1 2 . 8 4 Weapon 27 | . . . . . . . . . . . 1 2 . 4 4 1 . 12 3 Highest Loss Streak 12 | . . . 1 1 . . . . 1 1 1 3 . 3 3 3 . 12 10 To Critical Strikes 2 | . . . . . . . . . . . . . . . . . . 1 1 Average Slot Usage (%) 81 | . 100 100 99 100 77 77 81 60 60 65 81 85 85 85 86 77 70 83 57 Engine 7 | . 14 14 11 11 11 11 9 7 7 6 6 6 6 6 10 11 11 2 . Leg 2 | . . . . 3 11 11 9 . . 8 . . . . . . . 1 . Wheel 8 | . 28 28 21 18 11 11 9 14 15 2 . . . . . . . . . Hover 11 | . . . . . . . . . . 14 26 26 26 26 22 23 23 25 . Device 6 | . 14 14 12 11 3 . . . . 3 5 . 5 5 9 9 5 6 1 Storage 7 | . 14 14 11 11 11 11 9 7 7 6 6 6 6 6 5 5 5 5 4 Processor 3 | . . . . . . . . . . 1 6 6 6 6 5 5 5 10 7 Hackware 5 | . . . . . . . . 7 15 10 6 6 6 6 5 3 . 9 5 Protection 7 | . . . 19 22 7 11 26 14 7 2 . 5 . . . . . . 2 Energy Gun 2 | . . . . . . . . . . . . 10 15 7 . 1 5 3 6 Ballistic Gun 12 | . 27 26 18 21 22 22 13 7 6 6 21 13 10 13 13 3 . . . Impact Weapon 1 | . . . 2 . . . 2 . . . . . . 3 4 5 5 3 . Naked Turns . | . . . . . . . . . . . . . . . . . . . . Heaviest Build 96 | 13 30 30 52 52 51 25 37 41 39 39 32 39 32 38 51 47 42 72 96 Greatest Support 235 | 20 20 20 28 28 12 12 12 24 24 58 44 44 44 33 44 44 44 67 235 Greatest Overweight (x) 15 | 1 1 1 3 5 4 2 3 2 1 . . . . 1 1 1 . 15 3 Average Overweight (x) . | . . 1 1 2 1 2 2 1 . . . . . . . . . . . Largest Inventory Capacity 40 | 8 15 15 15 15 40 40 40 40 40 40 40 40 40 40 40 40 40 40 15 Average Capacity 29 | 7 9 15 15 15 31 40 40 40 40 40 40 40 40 40 40 40 40 15 14 Most Carried 40 | 8 12 15 15 15 26 30 40 40 40 39 40 40 40 40 40 39 38 37 15 Average Carried 27 | 5 8 13 14 14 19 26 38 39 38 36 36 39 39 37 38 38 37 13 11 Final Capacity 40 | 8 15 15 15 15 40 40 40 40 40 40 40 40 40 40 40 40 40 5 15 Final Carried 40 | 8 12 15 15 15 24 30 39 40 39 37 40 40 40 35 37 37 38 5 13 Class Distribution -------------------- 21% | Mutant 13% | Hauler-Skirmisher 13% | Hauler-Tank 13% | Hauler-Mutant 12% | Hauler-Gunner 9% | Scavenger-Mutant 4% | Commander-Tank Dominant Class ---------------- Mutant | -10/Materials Mutant | -10/Mines Scavenger-Mutant | -9/Materials Mutant | -9/Mines Hauler-Mutant | -9/Exiles Hauler-Mutant | -8/Mines Hauler-Mutant | -8/Materials Hauler-Tank | -7/Factory Commander-Tank | -7/Storage Hauler-Tank | -6/Factory Hauler-Gunner | -6/Extension Hauler-Gunner | -6/Cetus Hauler-Gunner | -6/Archives Hauler-Skirmisher | -6/Hub_04(d) Hauler-Skirmisher | -5/Factory Hauler-Mutant | -5/Upper Caves Hauler-Mutant | -5/Upper Caves Scavenger-Mutant | -4/Factory Mutant | -4/Armory Resources | -11 -10 -10 -9 -9 -9 -8 -8 -7 -7 -6 -6 -6 -6 -6 -5 -5 -5 -4 -4 ----------- Run | Yrd Mat Min Mat Min Exi Min Mat Fac Sto Fac Ext Cet Arc Hub Fac Upp Upp Fac Arm Matter Collected 8103 | 397 102 148 820 247 19 148 13 734 766 377 1153 80 367 372 438 140 118 1447 217 Remotely . | . . . . . . . . . . . . . . . . . . . . Salvage Created 9646 | 165 203 132 1147 293 . 132 13 846 961 239 1072 131 234 594 601 131 . 2326 426 Parts 539 | 13 20 8 92 18 . 7 3 47 51 15 56 6 14 25 35 2 . 111 16 Haulers Intercepted 7 | . 1 . 4 . . . . . 2 . . . . . . . . . . Recyclers Shooed 10 | . . 1 2 . . . . . . 1 1 . . . . . . 5 . Parts Field Recycled . | . . . . . . . . . . . . . . . . . . . . Retrieved Matter . | . . . . . . . . . . . . . . . . . . . . Parts Self-Destructed 5 | . . . . . . . . . . . . . . . . 5 . . . Prevented . | . . . . . . . . . . . . . . . . . . . . Kills | -11 -10 -10 -9 -9 -9 -8 -8 -7 -7 -6 -6 -6 -6 -6 -5 -5 -5 -4 -4 ------- Run | Yrd Mat Min Mat Min Exi Min Mat Fac Sto Fac Ext Cet Arc Hub Fac Upp Upp Fac Arm Combat Hostiles Destroyed 164 | . 5 3 30 10 . . . 15 12 3 18 1 1 6 16 1 . 37 6 Melee 2 | . . . . . . . . . . . . . . . . . . 2 . Guns 113 | . 3 1 20 10 . . . 15 12 3 18 . 1 5 6 1 . 12 6 Cannons 7 | . . . . . . . . . . . . . . . 2 . . 5 . AOE 35 | . 2 2 10 . . . . . . . . . . . 8 . . 13 . Classes Destroyed 17 | 3 5 . 3 1 . 1 . 2 . . . 1 . . . 1 . . . Worker 16 | 2 . . 1 . . 1 . 1 . . . . . 4 . . . 7 . Builder 10 | . . . . . . 1 . . . 1 1 . . 3 . . . 4 . Tunneler 6 | 3 . . . . . . . 2 . . . . . 1 . . . . . Hauler 7 | . 1 . 4 . . . . . 2 . . . . . . . . . . Recycler 11 | 1 . 2 . . . 1 . 1 1 . . . . . 1 . . 4 . Mechanic 1 | . . . 1 . . . . . . . . . . . . . . . . Operator 17 | . 2 . 1 . . . 1 1 1 . 1 . 8 1 . . . 1 . Watcher 13 | . 1 . 4 . . . . 1 1 3 1 . . 2 . . . . . Swarmer 46 | . 3 3 11 . . . . 5 . . 4 . . . 8 . . 12 . Grunt 51 | . 2 . 12 8 . . . 5 6 1 5 . . 2 . . . 10 . Brawler 1 | . . . 1 . . . . . . . . . . . . . . . . Duelist 3 | . . . . . . . . . . . . . . . . . . 1 2 Sentry 27 | . . . 6 . . . . 3 6 . 9 . 1 1 1 . . . . Hunter 10 | . . . . . . . . 1 . . . . . 2 2 . . 3 2 Programmer 22 | . . . . . . . . 1 . 2 . . . 1 5 . . 11 2 Cetus Guard 1 | . . . . . . . . . . . . 1 . . . . . . . Decomposer 2 | . . . . . . . . . . . . . . . . 2 . . . Assembled 2 | . . . . 2 . . . . . . . . . . . . . . . Butcher 1 | . . . . . . . . . . . . 1 . . . . . . . Mutant 1 | . . . . . . . . . . . . . . . . 1 . . . Best Kill Streak 11 | 2 4 3 5 4 . 3 1 5 6 2 3 1 3 9 8 1 . 11 2 Combat Bots Only 8 | . 3 3 5 4 . . . 4 5 1 3 1 1 1 8 1 . 8 2 Max Kills in Single Turn 9 | 1 2 2 3 1 . 1 1 2 3 1 2 1 1 9 6 1 . 5 1 Gunslinging . | . . . . . . . . . . . . . . . . . . . . Exploded 6 | . 2 2 3 . . . . . . . . . . . 6 . . 3 . Melee 1 | . . . . . . . . . . . . . . . . . . 1 . Uniques/NPCs Destroyed . | . . . . . . . . . . . . . . . . . . . . Combat | -11 -10 -10 -9 -9 -9 -8 -8 -7 -7 -6 -6 -6 -6 -6 -5 -5 -5 -4 -4 -------- Run | Yrd Mat Min Mat Min Exi Min Mat Fac Sto Fac Ext Cet Arc Hub Fac Upp Upp Fac Arm Hostile Shots Fired 1242 | . 15 7 103 26 . . . 31 59 6 193 12 . 70 85 34 1 362 238 Missed 441 | . 5 4 41 7 . . . 7 22 2 96 2 . 24 28 16 . 111 76 Damage Taken 14208 | . 96 53 707 209 . . . 282 364 52 1076 271 280 952 1110 345 18 5147 3246 Core 2327 | . 20 9 155 10 . . . 21 10 13 179 . 280 222 199 58 . 980 171 Absorbed by Shields 12 | . . . . . . . . . . . 12 . . . . . . . . Redirected to Shielding 144 | . . . . . . . . 77 61 . . . . . . . . . 6 Ignored by Resistances 69 | . . . 29 16 . . . 3 . 12 . . . 9 . . . . . Regen/Repaired (Parts) 345 | . . . . . . . . 33 . . . 23 . . 77 . . 212 . Core Remaining (%) 76 | 100 . 88 . . . 58 100 . 95 . . . . 18 . . 74 . . Volleys Fired 628 | 20 35 18 63 20 . 3 4 33 43 19 72 7 43 37 29 4 . 127 51 Largest 4 | 2 2 2 2 2 . 2 2 1 1 1 4 2 4 3 3 2 . 2 4 Hottest 370 | 40 40 40 53 53 . 47 53 60 60 60 88 115 163 115 116 115 . 193 370 Shots Fired 1131 | 40 69 29 123 40 . 6 7 33 43 20 260 10 87 68 70 8 . 147 71 Gun 1045 | 40 68 27 118 38 . 6 5 33 42 20 260 5 87 68 58 8 . 97 65 Cannon 51 | . . . . . . . . . . . . . . . 7 . . 38 6 Launcher 35 | . 1 2 5 2 . . 2 . 1 . . 5 . . 5 . . 12 . Special . | . . . . . . . . . . . . . . . . . . . . Kinetic 926 | 40 68 27 118 38 . 6 5 33 42 20 260 1 77 56 65 . . 69 1 Thermal 97 | . . . . . . . . . . . . . 4 . . . . 23 70 Explosive 28 | . 1 2 5 2 . . 2 . 1 . . . . . 3 . . 12 . Electromagnetic 80 | . . . . . . . . . . . . 9 6 12 2 8 . 43 . Robot Hit Streak 16 | 5 6 4 16 10 . 13 16 11 16 7 9 10 9 16 13 4 . 15 8 Robot Miss Streak 11 | 3 4 2 5 6 . . 1 4 5 6 11 . 6 2 8 1 . 5 4 Penetration Max 1 | . . . . . . . . . . . . . . . 1 . . . . Secondary Targets 4 | . . . . 2 . . . . . . 1 . . . 1 . . . . Max Gunslinging Chain 1 | . . . . 1 . . . . . . 1 . . . 1 . . . . Shots Hit Robots 775 | 23 36 19 94 26 . 5 3 31 37 14 146 6 62 44 50 8 2 126 43 Core Hits 508 | 11 16 8 64 19 . 4 3 31 37 9 62 9 58 32 41 4 . 83 17 Critical Kills 6 | . . . . . . . . . . . . . . . 3 . . 3 . Critical Parts Destroyed 8 | . . . 2 . . . . . . . . . . . 1 . . 5 . Critical Strikes 16 | . . . 2 . . . . . . . . . . . 5 . . 9 . Destroy 10 | . . . 1 . . . . . . . . . . . 5 . . 4 . Blast 1 | . . . . . . . . . . . . . . . . . . 1 . Smash 5 | . . . 1 . . . . . . . . . . . . . . 4 . Melee Attacks 97 | . . . 23 . . . 2 . . . . . . 14 9 12 3 34 . Impact 97 | . . . 23 . . . 2 . . . . . . 14 9 12 3 34 . Slashing . | . . . . . . . . . . . . . . . . . . . . Piercing . | . . . . . . . . . . . . . . . . . . . . Sneak Attacks 10 | . . . 2 . . . . . . . . . . 1 . 2 . 5 . Combat Hostiles . | . . . . . . . . . . . . . . . . . . . . Follow-up Attacks . | . . . . . . . . . . . . . . . . . . . . Damage Inflicted 25328 | 196 414 312 2118 545 . 95 55 1604 2265 807 3327 691 1309 1908 2001 292 131 5866 1392 Guns 17350 | 196 310 173 1402 504 . 95 49 1604 2265 807 3327 89 1309 890 1132 105 . 1829 1264 Cannons 1202 | . . . . . . . . . . . . . . . 178 . . 896 128 Explosions 4993 | . 104 139 524 41 . . 6 . . . . 602 . 899 691 . . 1987 . Melee 1783 | . . . 192 . . . . . . . . . . 119 . 187 131 1154 . Ramming . | . . . . . . . . . . . . . . . . . . . . Kinetic 15307 | 196 310 173 1402 504 . 95 49 1604 2265 807 3327 16 1149 679 1310 . . 1421 . Thermal 2171 | . . . . . . . . . . . . 247 47 . . . . 485 1392 Explosive 3401 | . 104 139 524 41 . . 6 . . . . . . . 600 . . 1987 . Electromagnetic 2666 | . . . . . . . . . . . . 428 113 1110 91 105 . 819 . Impact 1783 | . . . 192 . . . . . . . . . . 119 . 187 131 1154 . Slashing . | . . . . . . . . . . . . . . . . . . . . Piercing . | . . . . . . . . . . . . . . . . . . . . Highest Corruption 27 | . 1 1 . . . . . 1 1 3 3 2 2 2 3 . . 24 27 Average Corruption 5 | . 1 1 . . . . . 1 1 1 2 2 1 2 2 . . 10 24 Corruption Purged 16 | . . . . . . . . . . . 1 . 2 . 5 . . 8 . Corruption Blocked . | . . . . . . . . . . . . . . . . . . . . Effects 132 | . 1 4 . . . . . 5 6 10 19 3 3 . 2 . . 46 33 Message Errors 21 | . 1 . . . . . . 1 2 1 3 . . . . . . 8 5 Matter Fused 39 | . . 2 . . . . . 3 . 4 4 1 . . 2 . . 15 8 Heat Flow Errors 13 | . . . . . . . . . 2 . 2 . 1 . . . . 6 2 Energy Discharges 12 | . . . . . . . . . 1 1 2 1 . . . . . 2 5 Parts Rejected 2 | . . . . . . . . . . . . . . . . . . 2 . Parts Fused 2 | . . . . . . . . . . . 1 . . . . . . . 1 Data Loss (minor) 16 | . . 1 . . . . . . . 2 2 . 1 . . . . 5 5 Data Loss (major) 5 | . . . . . . . . 1 . . 1 . . . . . . 1 2 Misfires 7 | . . 1 . . . . . . . 1 2 1 . . . . . 2 . Alerts 4 | . . . . . . . . . 1 1 1 . . . . . . . 1 Misdirections 1 | . . . . . . . . . . . . . . . . . . 1 . Weapon Failures 10 | . . . . . . . . . . . 1 . 1 . . . . 4 4 Overload Shots . | . . . . . . . . . . . . . . . . . . . . Overflow Damage 1194 | . 5 3 114 . . . . . . . . 53 . 136 116 169 . 598 . Projectiles 51 | . . . . . . . . . . . . . . . 21 . . 30 . Explosions 506 | . 5 3 35 . . . . . . . . 53 . 117 95 . . 198 . Melee 637 | . . . 79 . . . . . . . . . . 19 . 169 . 370 . Knockbacks 11 | . . . . . . . . . . . . . . . . 1 . 10 . Impact 8 | . . . . . . . . . . . . . . . . 1 . 7 . Kinetic 3 | . . . . . . . . . . . . . . . . . . 3 . Secondary . | . . . . . . . . . . . . . . . . . . . . Self-Inflicted Damage 440 | . . 27 14 . . . . . . . . . . 184 . . . 215 . Shots 8 | . . 1 1 . . . . . . . . . . 2 . . . 4 . Rammed . | . . . . . . . . . . . . . . . . . . . . Targets Rammed . | . . . . . . . . . . . . . . . . . . . . Kicked . | . . . . . . . . . . . . . . . . . . . . Crushed . | . . . . . . . . . . . . . . . . . . . . Highest Temperature 620 | . 12 . 141 78 . 3 6 175 195 330 308 189 620 126 81 139 . 412 354 Average Temperature 91 | . 6 . 43 30 . 2 4 57 69 101 88 72 178 27 29 79 . 109 117 Received Heat Transfer 1564 | . 24 . 249 112 . . . 54 66 . 354 . . 111 45 57 9 483 . Effects 31 | . . . . . . . . . . 6 . . 14 . . . . 10 1 Shutdowns 3 | . . . . . . . . . . . . . 2 . . . . 1 . Energy Bleed 4 | . . . . . . . . . . 1 . . 1 . . . . 2 . Interference 16 | . . . . . . . . . . 4 . . 5 . . . . 6 1 Short Circuit 1 | . . . . . . . . . . . . . . . . . . 1 . Damage (minor) 2 | . . . . . . . . . . 1 . . 1 . . . . . . Damage (major) 2 | . . . . . . . . . . . . . 2 . . . . . . Damage (core) 3 | . . . . . . . . . . . . . 3 . . . . . . Siege Activations . | . . . . . . . . . . . . . . . . . . . . Robots Corrupted 6 | . . . . . . . . . . . . 1 . 1 . . . 4 . Combat Hostiles 6 | . . . . . . . . . . . . 1 . 1 . . . 4 . Parts Fried 37 | . . . 2 . . . . . . . . . 1 16 1 2 . 15 . Impact Corruptions 25 | . . . 1 . . . . . . . . . . 1 . 9 . 14 . Robots Melted . | . . . . . . . . . . . . . . . . . . . . Combat Hostiles . | . . . . . . . . . . . . . . . . . . . . Parts Melted 9 | . . . . . . . . . 3 . . . 1 . . . . 2 3 Heat Transferred 2296 | . . . . . . . . . . . . 150 74 . . . . 481 1591 Parts Sabotaged . | . . . . . . . . . . . . . . . . . . . . Parts Stolen . | . . . . . . . . . . . . . . . . . . . . Parts Stripped . | . . . . . . . . . . . . . . . . . . . . Power Chain Reactions 1 | . . . . . . . . . . . . 1 . . . . . . . Alert | -11 -10 -10 -9 -9 -9 -8 -8 -7 -7 -6 -6 -6 -6 -6 -5 -5 -5 -4 -4 ------- Run | Yrd Mat Min Mat Min Exi Min Mat Fac Sto Fac Ext Cet Arc Hub Fac Upp Upp Fac Arm Peak Influence 1281 | 30 143 156 389 171 . 15 46 324 1281 655 290 135 258 652 446 . . 719 408 Initial 582 | . 19 52 . 91 . . . . 128 582 39 135 43 20 319 . . 144 347 Average 240 | 12 79 111 263 90 . 3 7 145 819 381 178 106 155 129 335 . . 309 319 Maximum Alert Level 4 | . . . 1 . . . . 1 4 2 1 . 1 2 2 . . 3 2 Low Security (%) 48 | 100 100 100 12 100 . 100 100 63 4 3 61 100 56 78 . . . 42 19 Level 1 39 | . . . 87 . . . . 36 15 67 38 . 43 20 85 . . 26 77 Level 2 8 | . . . . . . . . . 11 29 . . . . 14 . . 31 2 Level 3 2 | . . . . . . . . . 44 . . . . . . . . . . Level 4 1 | . . . . . . . . . 25 . . . . . . . . . . Level 5 . | . . . . . . . . . . . . . . . . . . . . High Security . | . . . . . . . . . . . . . . . . . . . . Max Security . | . . . . . . . . . . . . . . . . . . . . Squads Dispatched 34 | . 3 . 4 . . . 1 4 3 3 2 . . 3 5 . . 5 1 Investigation 11 | . 1 . 2 . . . . 1 1 2 2 . . . 2 . . . . Extermination 9 | . . . . . . . . 1 . 1 . . . 1 2 . . 3 1 Reinforcement 13 | . 2 . 2 . . . 1 2 1 . . . . 2 1 . . 2 . Assault . | . . . . . . . . . . . . . . . . . . . . Garrison 1 | . . . . . . . . . 1 . . . . . . . . . . Intercept . | . . . . . . . . . . . . . . . . . . . . Searches Triggered . | . . . . . . . . . . . . . . . . . . . . Construction Impeded 3 | . . . . . . . . . . . . . . 1 . . . 2 . Haulers Reinforced 1 | . . . . . . . . . 1 . . . . . . . . . . Active Scanning Responses . | . . . . . . . . . . . . . . . . . . . . Cargo Convoy Interrupts . | . . . . . . . . . . . . . . . . . . . . Stealth | -11 -10 -10 -9 -9 -9 -8 -8 -7 -7 -6 -6 -6 -6 -6 -5 -5 -5 -4 -4 --------- Run | Yrd Mat Min Mat Min Exi Min Mat Fac Sto Fac Ext Cet Arc Hub Fac Upp Upp Fac Arm Distress Signals 19 | . 1 . 3 . . . . 1 3 . 1 1 . 5 . . . 1 3 Communications Jammed . | . . . . . . . . . . . . . . . . . . . . Distress Signals . | . . . . . . . . . . . . . . . . . . . . Times Spotted 299 | . 13 4 43 10 . . . 19 26 8 32 5 26 12 18 5 1 66 11 Peak Tracking Total 10 | . 4 3 4 3 . . . 4 5 3 6 5 1 4 10 4 1 10 6 Tactical Retreats 19 | . . 1 . 1 . . . . . . 3 . . 1 1 2 . 8 2 Traps | -11 -10 -10 -9 -9 -9 -8 -8 -7 -7 -6 -6 -6 -6 -6 -5 -5 -5 -4 -4 ------- Run | Yrd Mat Min Mat Min Exi Min Mat Fac Sto Fac Ext Cet Arc Hub Fac Upp Upp Fac Arm Traps Triggered 10 | . 1 . . . . . . 2 . 1 . . . 2 . . . 3 1 Indirectly 1 | . . . . . . . . . . . . . . 1 . . . . . Trap Hack Attempts . | . . . . . . . . . . . . . . . . . . . . Triggered . | . . . . . . . . . . . . . . . . . . . . Disarmed . | . . . . . . . . . . . . . . . . . . . . Reprogrammed . | . . . . . . . . . . . . . . . . . . . . Reused . | . . . . . . . . . . . . . . . . . . . . Traps Extracted . | . . . . . . . . . . . . . . . . . . . . Installed . | . . . . . . . . . . . . . . . . . . . . Triggered . | . . . . . . . . . . . . . . . . . . . . Machines | -11 -10 -10 -9 -9 -9 -8 -8 -7 -7 -6 -6 -6 -6 -6 -5 -5 -5 -4 -4 ---------- Run | Yrd Mat Min Mat Min Exi Min Mat Fac Sto Fac Ext Cet Arc Hub Fac Upp Upp Fac Arm Machines Disabled 45 | . . . 1 . . . 1 2 6 . 1 . 2 20 2 1 . 8 1 Max in Single Turn 15 | . . . 1 . . . 1 1 2 . 1 . 1 15 1 1 . 1 1 Garrison Access 5 | . . . . . . . . . 1 1 . . . . 2 . . 1 . Network Hub 2 | . . . . . . . . . . . . . . 2 . . . . . Machines Repaired . | . . . . . . . . . . . . . . . . . . . . Machines Dismantled . | . . . . . . . . . . . . . . . . . . . . Machines Sabotaged . | . . . . . . . . . . . . . . . . . . . . Overloaded Fab Kills . | . . . . . . . . . . . . . . . . . . . . Hacking | -11 -10 -10 -9 -9 -9 -8 -8 -7 -7 -6 -6 -6 -6 -6 -5 -5 -5 -4 -4 --------- Run | Yrd Mat Min Mat Min Exi Min Mat Fac Sto Fac Ext Cet Arc Hub Fac Upp Upp Fac Arm Machines Accessed 104 | . 8 . 12 . 1 . 5 16 10 10 14 1 1 9 8 . . 8 1 Terminals 75 | . 6 . 10 . . . 4 9 9 6 14 1 . 9 2 . . 5 . Fabricators 10 | . . . . . . . . 3 . 3 . . . . 3 . . . 1 Repair Stations 2 | . . . . . . . . 1 . . . . . . . . . 1 . Recycling Units 5 | . 2 . . . . . . 1 . . . . . . 1 . . 1 . Scanalyzers 3 | . . . 2 . . . . 1 . . . . . . . . . . . Garrison Access 7 | . . . . . . . 1 1 1 1 . . . . 2 . . 1 . Total Hacks 294 | . 19 . 34 . 1 . 15 36 18 32 33 1 25 19 22 . . 33 6 Successful 155 | . 6 . 14 . 1 . 8 16 11 19 15 1 25 7 11 . . 17 4 Failed 138 | . 13 . 19 . . . 7 20 7 13 18 . . 12 11 . . 16 2 Catastrophic 29 | . 1 . 5 . . . 1 3 2 3 . . . 5 2 . . 6 1 Database Lockouts 1 | . . . 1 . . . . . . . . . . . . . . . . Manual 136 | . 10 . 22 . 1 . 11 13 10 18 14 1 . 13 9 . . 13 1 Terminals 191 | . 16 . 27 . . . 14 20 17 18 33 1 . 19 5 . . 21 . Fabricators 40 | . . . . . . . . 9 . 13 . . . . 12 . . . 6 Repair Stations 12 | . . . . . . . . 2 . . . . . . . . . 10 . Recycling Units 7 | . 3 . . . . . . 1 . . . . . . 2 . . 1 . Scanalyzers 9 | . . . 7 . . . . 2 . . . . . . . . . . . Garrison Access 9 | . . . . . . . 1 2 1 1 . . . . 3 . . 1 . Terminal Hacks 83 | . 2 . 6 . 1 . 5 5 6 9 11 1 25 7 . . . 5 . Record 26 | . . . . . . . . . . 1 . . 25 . . . . . . Part Schematic 5 | . . . 1 . . . . 1 . 1 . . . . . . . 2 . Robot Analysis 1 | . . . . . . . . . 1 . . . . . . . . . . Prototype ID Bank 8 | . 1 . . . . . 1 2 . . 3 . . 1 . . . . . Open Door 8 | . . . . . . . . . 2 1 4 1 . . . . . . . Branch Access Points 5 | . . . 1 . . . 1 1 . 1 . . . . . . . 1 . Terminal Index 9 | . 1 . 1 . . . 1 1 1 1 1 . . 1 . . . 1 . Fabricator Index 1 | . . . . . . . . . . 1 . . . . . . . . . Unreport Threat 6 | . . . 2 . . . 1 . 1 1 1 . . . . . . . . Locate Traps 3 | . . . . . . . . . 1 1 1 . . . . . . . . Recall Reinforcements 1 | . . . . . . . 1 . . . . . . . . . . . . Zone Layout 9 | . . . 1 . . . . . . 1 1 . . 5 . . . 1 . Derelict Proto ID Bank 1 | . . . . . 1 . . . . . . . . . . . . . . Fabricator Hacks 13 | . . . . . . . . 2 . 4 . . . . 4 . . . 3 Network Status 2 | . . . . . . . . 1 . . . . . . 1 . . . . Load Schematic 7 | . . . . . . . . 1 . 2 . . . . 2 . . . 2 Build 4 | . . . . . . . . . . 2 . . . . 1 . . . 1 Repair Station Hacks 10 | . . . . . . . . 2 . . . . . . . . . 8 . Scan Component 5 | . . . . . . . . 1 . . . . . . . . . 4 . Repair 5 | . . . . . . . . 1 . . . . . . . . . 4 . Recycling Unit Hacks 4 | . 1 . . . . . . 1 . . . . . . 1 . . 1 . Retrieve Components 4 | . 1 . . . . . . 1 . . . . . . 1 . . 1 . Scanalyzer 5 | . . . 3 . . . . 2 . . . . . . . . . . . Insert Component 3 | . . . 2 . . . . 1 . . . . . . . . . . . Analyze 2 | . . . 1 . . . . 1 . . . . . . . . . . . Garrison Access Hacks 5 | . . . . . . . . . 1 1 . . . . 2 . . 1 . Seal Access 5 | . . . . . . . . . 1 1 . . . . 2 . . 1 . Unauthorized Hacks 35 | . 3 . 5 . . . 3 4 4 5 4 . . . 4 . . 2 1 Terminals 25 | . 3 . 5 . . . 3 3 4 1 4 . . . . . . 2 . Track 4 | . . . . . . . . 1 2 . . . . . . . . 1 . Assimilate 5 | . 1 . 4 . . . . . . . . . . . . . . . . Botnet 10 | . 1 . . . . . 2 2 1 1 2 . . . . . . 1 . Disrupt 2 | . . . . . . . . . 1 . 1 . . . . . . . . Operators 4 | . 1 . 1 . . . 1 . . . 1 . . . . . . . . Fabricators 10 | . . . . . . . . 1 . 4 . . . . 4 . . . 1 Prioritize 4 | . . . . . . . . . . 2 . . . . 1 . . . 1 Fabnet 4 | . . . . . . . . . . 2 . . . . 2 . . . . Recompile 2 | . . . . . . . . 1 . . . . . . 1 . . . . Repair Stations . | . . . . . . . . . . . . . . . . . . . . Recycling Units . | . . . . . . . . . . . . . . . . . . . . Scanalyzers . | . . . . . . . . . . . . . . . . . . . . Garrison Access . | . . . . . . . . . . . . . . . . . . . . Data Cores Recovered 4 | . . . . . . . . . 1 1 1 . . 1 . . . . . Used 1 | . . . . . . . . . . . . . . 1 . . . . . Hacking Detections 86 | . 7 . 10 . . . 5 15 7 9 12 . . 9 5 . . 6 1 Full Trace Events 9 | . 1 . 3 . . . . . . 2 2 . . . 1 . . . . Feedback Events 1 | . . . . . . . . . . 1 . . . . . . . . . Corruption 1 | . . . . . . . . . . 1 . . . . . . . . . Feedback Blocked . | . . . . . . . . . . . . . . . . . . . . Robot Schematics Acquired . | . . . . . . . . . . . . . . . . . . . . Robots Built . | . . . . . . . . . . . . . . . . . . . . Authchips . | . . . . . . . . . . . . . . . . . . . . Time . | . . . . . . . . . . . . . . . . . . . . Total Robot Build Rating . | . . . . . . . . . . . . . . . . . . . . Part Schematics Acquired 7 | . . . 2 . . . . 2 . 1 . . . . . . . 2 . Parts Built 7 | . . . . . . . . . . 4 . . . . 2 . . . 1 Authchips 2 | . . . . . . . . . . 1 . . . . . . . . 1 Time 238 | . . . . . . . . . . 159 . . . . 26 . . . 53 Total Part Build Rating 42 | . . . . . . . . . . 24 . . . . 12 . . . 6 Parts Repaired 5 | . . . . . . . . 1 . . . . . . . . . 4 . Time 250 | . . . . . . . . 38 . . . . . . . . . 212 . Parts Recycled . | . . . . . . . . . . . . . . . . . . . . Recycled Matter . | . . . . . . . . . . . . . . . . . . . . Retrieved Matter . | . . . . . . . . . . . . . . . . . . . . Retrieved Components 19 | . 3 . . . . . . 3 . . . . . . 3 . . 10 . Parts Scanalyzed 2 | . . . 1 . . . . 1 . . . . . . . . . . . Part Schematics Acquired 2 | . . . 1 . . . . 1 . . . . . . . . . . . Parts Damaged . | . . . . . . . . . . . . . . . . . . . . Bothacking | -11 -10 -10 -9 -9 -9 -8 -8 -7 -7 -6 -6 -6 -6 -6 -5 -5 -5 -4 -4 ------------ Run | Yrd Mat Min Mat Min Exi Min Mat Fac Sto Fac Ext Cet Arc Hub Fac Upp Upp Fac Arm Used RIF Installer . | . . . . . . . . . . . . . . . . . . . . Robots Hacked 6 | . . . . . . . . . . . . . . . 2 . . 3 1 Non-combat . | . . . . . . . . . . . . . . . . . . . . Combat 6 | . . . . . . . . . . . . . . . 2 . . 3 1 Robot Hacks Applied . | . . . . . . . . . . . . . . . . . . . . Relay Couplers Released . | . . . . . . . . . . . . . . . . . . . . Fabnet Peak Effective % 6 | . . . . . . . . . . . . . . . 6 6 6 5 5 Autooverrided 6 | . . . . . . . . . . . . . . . 2 . . 3 1 Robots Rewired 23 | . . . . . . . . . . . 19 . . . . 4 . . . Allies Hacked . | . . . . . . . . . . . . . . . . . . . . Hacks Repelled . | . . . . . . . . . . . . . . . . . . . . Allies | -11 -10 -10 -9 -9 -9 -8 -8 -7 -7 -6 -6 -6 -6 -6 -5 -5 -5 -4 -4 -------- Run | Yrd Mat Min Mat Min Exi Min Mat Fac Sto Fac Ext Cet Arc Hub Fac Upp Upp Fac Arm Total Allies 54 | . . 3 2 . . . . . 12 . 24 3 . . 2 4 . 3 1 Largest Group 12 | . . 3 2 2 . . . . 10 10 12 10 5 4 . 4 4 4 1 Highest-Rated Group 459 | . . 40 20 20 . . . . 262 262 459 397 278 244 . 91 91 91 56 Highest-Rated Ally 159 | . . 16 10 10 . . . . 100 95 159 159 96 96 . 31 31 56 56 Total Orders 5 | . . . . . . . . . . . . . 2 3 . . . . . STAY 3 | . . . . . . . . . . . . . 1 2 . . . . . FOLLOW 2 | . . . . . . . . . . . . . 1 1 . . . . . Ally Attacks 313 | . . 7 . . . . . . 98 38 78 19 24 17 3 . 11 14 4 Total Damage 6440 | . . 78 . . . . . . 1813 524 1222 529 855 560 12 . 275 384 188 Kills 49 | . . 1 . . . . . . 16 3 13 4 4 6 . . 1 1 . Allies Corrupted 1 | . . . . . . . . . . . . . . 1 . . . . . Allies Melted . | . . . . . . . . . . . . . . . . . . . . Intel | -11 -10 -10 -9 -9 -9 -8 -8 -7 -7 -6 -6 -6 -6 -6 -5 -5 -5 -4 -4 ------- Run | Yrd Mat Min Mat Min Exi Min Mat Fac Sto Fac Ext Cet Arc Hub Fac Upp Upp Fac Arm Robot Analysis Total 1 | . . . . . . . . . 1 . . . . . . . . . . Derelict Logs Recovered 2 | . . 1 . 1 . . . . . . . . . . . . . . . Drone Launches . | . . . . . . . . . . . . . . . . . . . . Drone Recoveries . | . . . . . . . . . . . . . . . . . . . . Exploration | -11 -10 -10 -9 -9 -9 -8 -8 -7 -7 -6 -6 -6 -6 -6 -5 -5 -5 -4 -4 ------------- Run | Yrd Mat Min Mat Min Exi Min Mat Fac Sto Fac Ext Cet Arc Hub Fac Upp Upp Fac Arm Turns Passed 15521 | 158 611 413 1888 630 544 401 618 1406 706 1367 1018 242 535 1082 928 380 54 1972 568 Spaces Moved 11538 | 92 504 323 1119 323 450 312 403 1131 577 1173 679 164 467 1022 950 458 51 1069 271 Core 120 | 4 . . . . . . . . . . . . . . . . . 56 60 Treads 210 | . . . . . . . . . . . . . . . . . . . 210 Legs 479 | . . . . 2 . . . . . 387 . . . . . . . 89 1 Wheels 5239 | 88 504 323 1119 321 450 312 403 1131 577 . . . . . . . . 11 . Hover 5490 | . . . . . . . . . . 786 679 164 467 1022 950 458 51 913 . Flight . | . . . . . . . . . . . . . . . . . . . . Fastest Speed 36 | 50 80 95 95 110 105 120 120 100 90 58 58 58 58 62 55 55 58 36 50 Average Speed 86 | 80 83 95 109 125 117 120 121 106 104 80 58 58 58 63 65 56 58 70 130 Slowest Speed 800 | 100 95 95 145 470 150 120 135 120 105 126 58 58 62 102 102 98 58 800 200 Overloaded Moves . | . . . . . . . . . . . . . . . . . . . . Propulsion Burnouts . | . . . . . . . . . . . . . . . . . . . . Robots Hopped . | . . . . . . . . . . . . . . . . . . . . Cave-ins Triggered . | . . . . . . . . . . . . . . . . . . . . Exploration Rate (%) 51 | 4 74 55 78 70 78 75 30 26 87 24 70 71 91 56 18 65 12 27 10 Regions Visited 19 Branch Regions 12 Pre-discovered Areas 1 | . . . . . . . . . 1 . . . . . . . . . . Known Exits Taken 12 | . . . 1 1 . . . 1 . 1 1 1 1 1 1 1 1 1 . Unknown Exits Taken 7 | 1 1 1 . . 1 1 1 . 1 . . . . . . . . . . Scrap Searched 8 | . . 1 . 1 . 1 . . . . . . . . . 3 2 . . Spaces Dug 55 | . . . 14 . . . 2 . . 2 . . . 14 7 8 . 8 . Terrain Destroyed 646 | . 9 22 48 8 . . 18 8 42 2 1 18 . 333 29 8 . 94 6 Melee 45 | . . . 14 . . . 2 . . . . . . 11 7 8 . 3 . Projectile 77 | . . . . . . . . 8 31 2 1 . . 10 8 . . 11 6 AOE 524 | . 9 22 34 8 . . 16 . 11 . . 18 . 312 14 . . 80 . Terrain Rammed . | . . . . . . . . . . . . . . . . . . . . Walls Destroyed . | . . . . . . . . . . . . . . . . . . . . Machines Disabled . | . . . . . . . . . . . . . . . . . . . . Actions | -11 -10 -10 -9 -9 -9 -8 -8 -7 -7 -6 -6 -6 -6 -6 -5 -5 -5 -4 -4 --------- Run | Yrd Mat Min Mat Min Exi Min Mat Fac Sto Fac Ext Cet Arc Hub Fac Upp Upp Fac Arm Total 16173 | 150 641 403 1636 512 469 332 524 1352 680 1599 1264 299 667 1362 1182 550 69 2072 410 Wait 3068 | 7 81 56 349 151 . 12 87 109 28 359 364 116 139 260 144 34 15 713 44 Move 11519 | 91 503 322 1118 322 449 311 402 1130 576 1172 678 163 466 1021 949 457 50 1068 271 Hop . | . . . . . . . . . . . . . . . . . . . . Pick Up 226 | 15 8 4 13 6 11 6 17 37 12 16 8 5 6 5 19 2 1 19 16 Fast Attach 76 | 8 . . 7 . 1 . . 1 3 . 6 1 2 4 . . . 30 13 Attach 87 | . . . 2 3 1 . 2 2 2 10 2 3 . 7 11 3 . 31 8 Detach 27 | 1 . . 1 1 1 . . 1 2 6 1 . 1 . 2 1 . 8 1 Swap 117 | . 6 2 31 4 . . 5 11 1 8 2 3 4 12 12 1 . 15 . Drop 159 | 8 8 1 29 5 6 . 5 28 10 9 1 1 6 2 7 . . 27 6 Fire 628 | 20 35 18 63 20 . 3 4 33 43 19 72 7 43 37 29 4 . 127 51 Melee 97 | . . . 23 . . . 2 . . . . . . 14 9 12 3 34 . Ram . | . . . . . . . . . . . . . . . . . . . . Kick . | . . . . . . . . . . . . . . . . . . . . Crush . | . . . . . . . . . . . . . . . . . . . . Escape Stasis . | . . . . . . . . . . . . . . . . . . . . Rewire 169 | . . . . . . . . . 3 . 130 . . . . 36 . . . Trap . | . . . . . . . . . . . . . . . . . . . . Miscellaneous . | . . . . . . . . . . . . . . . . . . . . Route ------- -11/Scrapyard -10/Materials (discovered 3 exits: *Mat x2 / [*Min]) -10/Mines -9/Materials (discovered 3 exits: *Mat x2 / *Min) -9/Mines -9/Exiles -8/Mines (discovered 2 exits: *Mat x2) -8/Materials -7/Factory (discovered 4 exits: *Sto x2 / *Low x2) -7/Storage (discovered 2 exits: *Fac / [*Rec]) -6/Factory (discovered 5 exits: Fac / *Low x2 / *Ext x2) -6/Extension (discovered 2 exits: *Fac / *Cet) -6/Cetus -6/Archives (discovered 3 exits: *Fac / *Hub x2) -6/Hub_04(d) (discovered 3 exits: *Fac x3) -5/Factory -5/Upper Caves -5/Upper Caves -4/Factory (discovered 5 exits: *Res x2 / *Upp x2 / *Arm) -4/Armory History --------- Turn | Location | Event 14 | -11/Scrapyard | Discovered new exit (range 15) 159 | -11/Scrapyard | Entered Materials 321 | -10/Materials | Build established: Mutant 562 | -10/Materials | Discovered new exit (range 14) 670 | -10/Materials | Discovered new exit (range 11) 748 | -10/Materials | Discovered new exit (range 11) 770 | -10/Materials | Entered Mines 771 | -10/Mines | Discovered new exit (range 6) 779 | -10/Mines | Assisted by bots powering up and referring to "LRC-V3" 940 | -10/Mines | Learned Materials machine intel 947 | -10/Mines | A weapon hastily lodged in a ceiling crevice suddenly fell to the ground 1001 | -10/Mines | Assembled infested the area 1006 | -10/Mines | Assisted by a Guerilla fighting off Assembled 1059 | -10/Mines | Lost 3 allies 1183 | -10/Mines | Entered Materials 1183 | -9/Materials | Evolved 2 slots: Utility x2 1184 | -9/Materials | Loaded intel: 57 machine locations 1615 | -9/Materials | Build established: Scavenger-Mutant 1741 | -9/Materials | Discovered new exit (range 13) 2202 | -9/Materials | Discovered new exit (range 16) 2669 | -9/Materials | Build established: Mutant 2988 | -9/Materials | Identified exit to Mines 2990 | -9/Materials | Discovered new exit (range 12) 2990 | -9/Materials | Central database locked down 3071 | -9/Materials | Entered Mines 3071 | -9/Mines | Accompanied by 2 allies 3074 | -9/Mines | Met a Derelict bent on vengeance 3183 | -9/Mines | Found a hidden stash of uninstalled traps 3261 | -9/Mines | Identified exit to Exiles 3333 | -9/Mines | Excavation squad dispatched 3333 | -9/Mines | A large section of the Mines collapsed 3583 | -9/Mines | Excavation squad dispatched 3695 | -9/Mines | Deemed a non-threat by the Exiles lab entrance 3701 | -9/Mines | Entered Exiles 3737 | -9/Exiles | Met 8R-AWN 3760 | -9/Exiles | Met EX-HEX 3809 | -9/Exiles | Met EX-BIN 3827 | -9/Exiles | Aligned with FarCom system 3829 | -9/Exiles | Given EX-Vault access code 3865 | -9/Exiles | Opened EX-Vault 3886 | -9/Exiles | Found Lightpack 2.0 3896 | -9/Exiles | Found XL Autogun Array 3901 | -9/Exiles | Found Field Lobotomy Kit 3924 | -9/Exiles | Warned to stay clear of 0b10 Research branches 3951 | -9/Exiles | Met EX-DEC 4004 | -9/Exiles | Visited The Gauntlet 4175 | -9/Exiles | Build established: Hauler-Mutant 4229 | -9/Exiles | Discovered new exit (range 14) 4245 | -9/Exiles | Stole three prototypes: Lightpack 2.0, XL Autogun Array, Field Lobotomy Kit 4245 | -9/Exiles | Entered Mines 4640 | -8/Mines | Discovered new exit (range 6) 4646 | -8/Mines | Discovered new exit (range 14) 4646 | -8/Mines | Entered Materials 4646 | -8/Materials | Evolved 2 slots: Utility x2 5243 | -8/Materials | Discovered new exit (range 15) 5264 | -8/Materials | Entered Factory 5264 | -7/Factory | Evolved 2 slots: Weapon x2 5266 | -7/Factory | FarCom data flow suspended 5533 | -7/Factory | Build established: Hauler-Tank 5801 | -7/Factory | Discovered new exit (range 12) 6007 | -7/Factory | Repaired Imp. Weapon Shielding 6386 | -7/Factory | Identified exit to Storage 6386 | -7/Factory | Identified exit to Lower Caves 6670 | -7/Factory | Entered Storage 6684 | -7/Storage | Assisted by bots powering up and referring to "LRC-V3" 6772 | -7/Storage | Met 01-MTF 6951 | -7/Storage | Build established: Commander-Tank 7089 | -7/Storage | Learned location of Armory (-4) 7164 | -7/Storage | Garrison activated, responded to threat 7258 | -7/Storage | Discovered new exit (range 9) 7324 | -7/Storage | Discovered new exit (range 12) 7376 | -7/Storage | Entered Factory 7376 | -6/Factory | Accompanied by 10 allies (01-MTF) 7376 | -6/Factory | Evolved 2 slots: Propulsion x2 7381 | -6/Factory | 01-MTF left 7490 | -6/Factory | Discovered new exit (range 16) 7551 | -6/Factory | Fabricated Gyrokinetic Inverter (x2) 7662 | -6/Factory | Lost 6 allies 7772 | -6/Factory | Fabricated Gyrokinetic Inverter? 7869 | -6/Factory | Lost 3 allies 7885 | -6/Factory | Build established: Hauler-Tank 7996 | -6/Factory | Spotted B-75 Beast 8615 | -6/Factory | Build established: Hauler-Skirmisher 8653 | -6/Factory | Identified exit to Lower Caves 8653 | -6/Factory | Identified exit to Extension 8653 | -6/Factory | Discovered new exit (range 13) 8743 | -6/Factory | Entered Extension 8861 | -6/Extension | Rescued a captive Derelict 8862 | -6/Extension | Rescued a captive Derelict 9159 | -6/Extension | Lost 3 allies 9238 | -6/Extension | Spotted B-75 Beast 9280 | -6/Extension | Spotted B-75 Beast 9319 | -6/Extension | Lost 4 allies 9402 | -6/Extension | Build established: Hauler-Gunner 9410 | -6/Extension | Lost 3 allies 9484 | -6/Extension | Rescued a captive Derelict 9495 | -6/Extension | Rescued a captive Derelict 9611 | -6/Extension | Rescued A7 9711 | -6/Extension | Discovered new exit (range 10) 9721 | -6/Extension | Discovered new exit (range 6) 9726 | -6/Extension | Identified exit to Factory 9730 | -6/Extension | Identified exit to Cetus 9761 | -6/Extension | Entered Cetus 9761 | -6/Cetus | Accompanied by 10 allies (A7) 9766 | -6/Cetus | Acquired a Cetus Manufacturing Module code from A7 9789 | -6/Cetus | Spotted Cetus Guard 9789 | -6/Cetus | Spotted Cetus Guard 9795 | -6/Cetus | Spotted Cetus Guard 9797 | -6/Cetus | Spotted Cetus Guard 9798 | -6/Cetus | Allies destroyed Cetus Guard 9799 | -6/Cetus | Found Prototype Protection 9799 | -6/Cetus | Identified Med. Regenerative Plating 9820 | -6/Cetus | Allies destroyed Cetus Guard 9822 | -6/Cetus | Allies destroyed Cetus Guard 9824 | -6/Cetus | Destroyed Cetus Guard 9835 | -6/Cetus | Lost 3 parts (1u2w) 9835 | -6/Cetus | Extracted ID and sensor layout for unrecognized location from A7's data core 9851 | -6/Cetus | Lost 7 allies 9910 | -6/Cetus | Started Cetus Manufacturing Module 9935 | -6/Cetus | Manufactured an Enhanced Grunt 9960 | -6/Cetus | Manufactured an Enhanced Grunt 9961 | -6/Cetus | Discovered new exit (range 16) 9969 | -6/Cetus | Identified exit to Archives 9985 | -6/Cetus | Manufactured an Enhanced Grunt 10003 | -6/Cetus | Entered Archives 10003 | -6/Archives | Accompanied by 5 allies 10077 | -6/Archives | Discovered new exit (range 16) 10102 | -6/Archives | Discovered exit to Factory (range 16) 10195 | -6/Archives | Core integrity fell below 50% 10318 | -6/Archives | Discovered new exit (range 16) 10420 | -6/Archives | Unable to access archive contents 10425 | -6/Archives | Unable to access archive contents 10432 | -6/Archives | Unable to access archive contents 10438 | -6/Archives | Unable to access archive contents 10480 | -6/Archives | Identified exit to Hub_04(d) 10538 | -6/Archives | Entered Hub_04(d) 10538 | -6/Hub_04(d) | Accompanied by 4 allies 10721 | -6/Hub_04(d) | Discovered exit to Factory (range 16) 10899 | -6/Hub_04(d) | Discovered exit to Factory (range 15) 10990 | -6/Hub_04(d) | Lost 3 parts (3w) 11579 | -6/Hub_04(d) | Discovered exit to Factory (range 11) 11611 | -6/Hub_04(d) | Network Hub disabled 11611 | -6/Hub_04(d) | Network Hub disabled 11612 | -6/Hub_04(d) | Core integrity fell below 20% 11620 | -6/Hub_04(d) | Entered Factory 11620 | -5/Factory | Evolved 2 slots: Power x1, Utility x1 11718 | -5/Factory | Found Prototype Launcher 11769 | -5/Factory | Fabricated Gyrokinetic Inverter (x2) 11791 | -5/Factory | Build established: Hauler-Skirmisher 12128 | -5/Factory | Lost 3 parts (1p1u1w) 12402 | -5/Factory | Lost 3 parts (1p2w) 12506 | -5/Factory | Discovered new exit (range 6) 12509 | -5/Factory | Identified exit to Upper Caves 12531 | -5/Factory | Local machine network offline 12548 | -5/Factory | Entered Upper Caves 12559 | -5/Upper Caves | Destroyed 8 combat bots 12638 | -5/Upper Caves | Spotted B-75 Beast 12640 | -5/Upper Caves | Build established: Hauler-Mutant 12771 | -5/Upper Caves | Attracted the attention of an 0b10 checkpoint 12806 | -5/Upper Caves | Encountered a Warlord checkpoint 12808 | -5/Upper Caves | Lost 3 parts (1n1u1w) 12819 | -5/Upper Caves | Attacked by a delusional Derelict stockpiling Unaware 12909 | -5/Upper Caves | Discovered new exit (range 7) 12912 | -5/Upper Caves | Identified exit to Upper Caves 12928 | -5/Upper Caves | Entered another Upper Caves area 12928 | -5/Upper Caves | Accompanied by 4 allies 12958 | -5/Upper Caves | Discovered new exit (range 15) 12978 | -5/Upper Caves | Identified exit to Factory 12982 | -5/Upper Caves | Entered Factory 12982 | -4/Factory | Accompanied by 4 allies 12982 | -4/Factory | Evolved 2 slots: Propulsion x2 12988 | -4/Factory | Identified Mni. Smartbomb Launcher 13068 | -4/Factory | Repaired Gyrokinetic Inverter 13131 | -4/Factory | Repaired Gyrokinetic Inverter 13196 | -4/Factory | Repaired Gyrokinetic Inverter 13242 | -4/Factory | Repaired Imp. Deuterium Engine 13361 | -4/Factory | Lost 3 allies 13492 | -4/Factory | Identified exit to Upper Caves 13492 | -4/Factory | Identified exit to Armory 13626 | -4/Factory | Spotted B-86 Titan 13677 | -4/Factory | Discovered new exit (range 15) 13683 | -4/Factory | Identified exit to Research 13685 | -4/Factory | Discovered exit to Research (range 10) 14005 | -4/Factory | Lost 3 parts (1p1n1w) 14090 | -4/Factory | Lost 5 parts (2p1n1u1w) 14303 | -4/Factory | Build established: Hacker-Gunner 14401 | -4/Factory | Lost 3 parts (2n1w) 14424 | -4/Factory | System corruption reached 10% 14606 | -4/Factory | Core integrity fell below 50% 14638 | -4/Factory | Destroyed 8 combat bots 14639 | -4/Factory | Lost 12 parts (2p5n2u3w) 14813 | -4/Factory | Lost 7 parts (1p2n1u3w) 14954 | -4/Factory | Core integrity fell below 20% 14954 | -4/Factory | Entered Armory 14984 | -4/Armory | Lost 6 parts (1p3n1u1w) 15196 | -4/Armory | Fabricated Adv. Hacking Suite (x1) 15335 | -4/Armory | Lost 10 parts (2p2n4u2w) 15522 | -4/Armory | Destroyed by P-70 Sage with Tesla Rifle Last Messages --------------- Rating: 6 Time: 26 Initiate build sequence. 15434_ System corrupted: Component data lost. 15439_ Acquired Lyr. Heavy Armor Plating. 15450_ Y =QY,WFS1OT4ZR3,JSTYGZG8SCWRC> 15454_ ALERT: Rogue bot located, Programmers report to Armory Zone 7F. 15465_ P-70 Sage destroyed. 15473_ System corrupted: Matter fused (-5). 15489_ System corrupted: Energy discharge (-140). 15492_ P-70 Sage destroyed. 15502_ Enh. Quantum Rifle destroyed. 15505_ Overheating: System interference. 15505_ Enh. Nova Cannon temporarily disabled. 15505_ System corrupted: Energy discharge (-154). 15518_ Arsenal Racks disabled. 15522_ |ZPF28 UXCQR0OG6C7